Cogmind - Beta 13 @@@ ROGUE MODE // 2024.05.30 @ 18:48:21 Player: Bace Troncons Result: Destroyed by Y-54 Guardian with Gatling Laser Performance ------------- Evolutions (0) 0 Regions Visited (3) 600 Robots Destroyed (17) 85 Value Destroyed (601) 601 Prototype IDs (5) 100 Alien Tech Used (0) 0 Bonus (0) 0 TOTAL SCORE: 1386 Bonus ------- None Cogmind --------- Core Integrity 0/250 Matter 296/300 Energy 100/100 System Corruption 4% Temperature Cool (12) Movement Rolling (113) Location -7/Recycling Parts ------- > --- POWER (1) -------- (None) > --- PROPULSION (2) --- Wheeled Armored-Aluminum Exoskeleton > --- UTILITY (2) ------ Armored Scrap Engine > --- WEAPON (2) ------- (None) > --- INVENTORY (5) ---- Improved Melee Analysis Suite Advanced ECM Suite Makeshift System Shield System Restoration Module Remote Datajack Peak State ------------ > --- POWER ------------ Nuclear-Ion Core > --- PROPULSION ------- Wheeled Armored-Aluminum Exoskeleton > --- UTILITY ---------- Armored Scrap Engine > --- WEAPON ----------- Remote Datajack Ballistic Battle Construct/C > --- INVENTORY -------- Improved Melee Analysis Suite Advanced ECM Suite Makeshift System Shield System Restoration Module Katana [Rating: 32] Favorites ----------- Power Light Ion Engine Engine Light Ion Engine Power Core Constructs Propulsion Light Treads Treads Light Treads Leg Aluminum Leg Wheel Constructs Utility Large Storage Unit Device Sensor Array Storage Large Storage Unit Protection Makeshift Light Armor Plating Weapon Subdweller Shrapnel Launcher Energy Gun Small Laser Ballistic Gun Assault Rifle Ballistic Cannon Battle Cannon Launcher Subdweller Shrapnel Launcher Special Weapon Remote Datajack Slashing Weapon Katana Build | -11 -10 -10 -7 ------- Run | Yrd Mat Sub Rec Slots Evolved . | . . . . Power . | . . . . Propulsion . | . . . . Utility . | . . . . Weapon . | . . . . Parts Attached 20 | 7 2 7 4 Power 2 | 1 . 1 . Engine 1 | 1 . . . Core 1 | . . 1 . Reactor . | . . . . Propulsion 4 | 2 . 2 . Treads 2 | 2 . . . Leg 2 | . . 2 . Wheel . | . . . . Hover . | . . . . Flight . | . . . . Utility 5 | 1 2 1 1 Device 2 | . 1 . 1 Storage 2 | 1 1 . . Processor . | . . . . Hackware . | . . . . Protection 1 | . . 1 . Artifact . | . . . . Weapon 9 | 3 . 3 3 Energy Gun 1 | 1 . . . Energy Cannon . | . . . . Ballistic Gun 3 | 2 . 1 . Ballistic Cannon 1 | . . 1 . Launcher 1 | . . 1 . Special Weapon 1 | . . . 1 Impact Weapon . | . . . . Slashing Weapon 2 | . . . 2 Piercing Weapon . | . . . . Special Melee Weapon . | . . . . Unidentified Prototypes . | . . . . Parts Lost 8 | . . 4 4 Power 1 | . . . 1 Propulsion 2 | . . 2 . Utility 1 | . . 1 . Weapon 4 | . . 1 3 Highest Loss Streak 4 | . . 3 4 To Critical Strikes . | . . . . Average Slot Usage (%) 85 | . 97 92 65 Engine 10 | . 14 12 2 Core 3 | . . 1 8 Treads 15 | . 28 19 . Leg 2 | . . 2 5 Wheel 2 | . . . 8 Device 10 | . 11 7 13 Storage 10 | . 14 14 . Protection 3 | . . 6 . Ballistic Gun 11 | . 28 10 . Ballistic Cannon 6 | . . 11 3 Launcher 6 | . . 6 12 Slashing Weapon 2 | . . . 8 Naked Turns . | . . . . Heaviest Build 40 | 11 27 40 40 Greatest Support 40 | 40 40 40 20 Greatest Overweight (x) 12 | . . 12 4 Average Overweight (x) . | . . . . Largest Inventory Capacity 15 | 8 15 15 15 Average Capacity 11 | 6 13 15 5 Most Carried 12 | 4 7 12 11 Average Carried 7 | 2 6 9 4 Final Capacity 15 | 8 15 15 5 Final Carried 10 | 4 7 10 5 Scrap Engine Consumption 22 | . . . 22 Constructs Created 3 | . . . 3 Constructs Modified 2 | . . . 2 Class Distribution -------------------- 80% | Mutant 19% | Construct Dominant Class ---------------- Mutant | -10/Materials Mutant | -10/Subcaves Construct | -7/Recycling Resources | -11 -10 -10 -7 ----------- Run | Yrd Mat Sub Rec Matter Collected 847 | 201 97 228 321 Remotely . | . . . . Salvage Created 526 | . 97 275 154 Parts 29 | . 8 16 5 Haulers Intercepted . | . . . . Recyclers Shooed . | . . . . Parts Field Recycled . | . . . . Retrieved Matter . | . . . . Parts Self-Destructed 7 | . . 7 . Prevented . | . . . . Kills | -11 -10 -10 -7 ------- Run | Yrd Mat Sub Rec Combat Hostiles Destroyed 16 | . 2 11 3 Melee 3 | . . . 3 Guns 7 | . 2 5 . Cannons 5 | . . 5 . AOE 1 | . . 1 . Classes Destroyed 5 | . 2 2 1 Watcher 1 | . 1 . . Swarmer 3 | . . 3 . Grunt 4 | . 2 . 2 Programmer 1 | . . . 1 Subdweller 8 | . . 8 . Best Kill Streak 3 | . 2 3 3 Combat Bots Only 3 | . 2 3 3 Max Kills in Single Turn 1 | . 1 1 1 Gunslinging . | . . . . Exploded 1 | . . 1 . Melee 1 | . . . 1 Uniques/NPCs Destroyed . | . . . . Combat | -11 -10 -10 -7 -------- Run | Yrd Mat Sub Rec Hostile Shots Fired 172 | . 8 96 68 Missed 48 | . 2 28 18 Damage Taken 1587 | . 77 910 600 Core 251 | . 14 116 121 Absorbed by Shields . | . . . . Regen/Repaired (Parts) 40 | . . . 40 Core Remaining (%) 100 | 100 . . . Volleys Fired 52 | . 8 40 4 Largest 2 | . 2 2 1 Hottest 79 | . 40 79 51 Shots Fired 95 | . 16 75 4 Gun 49 | . 16 33 . Cannon 33 | . . 32 1 Launcher 10 | . . 10 . Special 3 | . . . 3 Kinetic 91 | . 16 75 . Thermal 1 | . . . 1 Explosive . | . . . . Electromagnetic . | . . . . Robot Hit Streak 28 | . 7 28 10 Robot Miss Streak 2 | . 1 2 1 Penetration Max . | . . . . Secondary Targets . | . . . . Shots Hit Robots 71 | . 11 46 14 Core Hits 35 | . 6 25 4 Critical Kills . | . . . . Critical Parts Destroyed . | . . . . Critical Strikes 4 | . . 1 3 Blast 1 | . . 1 . Sever 3 | . . . 3 Melee Attacks 11 | . . . 11 Impact . | . . . . Slashing 11 | . . . 11 Piercing . | . . . . Sneak Attacks 1 | . . . 1 Combat Hostiles . | . . . . Follow-up Attacks . | . . . . Damage Inflicted 1917 | . 123 1426 368 Guns 489 | . 123 366 . Cannons 367 | . . 367 . Explosions 693 | . . 693 . Melee 368 | . . . 368 Ramming . | . . . . Kinetic 1549 | . 123 1426 . Thermal . | . . . . Explosive . | . . . . Electromagnetic . | . . . . Impact . | . . . . Slashing 368 | . . . 368 Piercing . | . . . . Highest Corruption 4 | . . . 4 Average Corruption 3 | . . . 3 Corruption Purged . | . . . . Corruption Blocked . | . . . . Effects 1 | . . . 1 Matter Fused 1 | . . . 1 Overload Shots . | . . . . Overflow Damage 52 | . . 17 35 Projectiles . | . . . . Explosions 17 | . . 17 . Melee 35 | . . . 35 Knockbacks 5 | . . 5 . Impact . | . . . . Kinetic 5 | . . 5 . Secondary . | . . . . Self-Inflicted Damage 39 | . . 39 . Shots 3 | . . 3 . Rammed . | . . . . Targets Rammed . | . . . . Kicked . | . . . . Crushed . | . . . . Highest Temperature 16 | . 9 . 16 Average Temperature 9 | . 7 . 12 Received Heat Transfer 492 | . 45 270 177 Siege Activations . | . . . . Robots Corrupted . | . . . . Combat Hostiles . | . . . . Parts Fried . | . . . . Impact Corruptions . | . . . . Robots Melted . | . . . . Combat Hostiles . | . . . . Parts Melted 1 | . . 1 . Heat Transferred . | . . . . Parts Sabotaged . | . . . . Parts Stolen . | . . . . Parts Stripped . | . . . . Power Chain Reactions . | . . . . Alert | -11 -10 -10 -7 ------- Run | Yrd Mat Sub Rec Peak Influence 216 | . 72 . 216 Initial 216 | . . . 216 Average 50 | . 46 . 60 Maximum Alert Level 1 | . . . 1 Low Security (%) 96 | 100 100 . 93 Level 1 3 | . . . 6 Level 2 . | . . . . Level 3 . | . . . . Level 4 . | . . . . Level 5 . | . . . . High Security . | . . . . Max Security . | . . . . Squads Dispatched . | . . . . Investigation . | . . . . Extermination . | . . . . Reinforcement . | . . . . Assault . | . . . . Garrison . | . . . . Intercept . | . . . . Searches Triggered . | . . . . Construction Impeded . | . . . . Haulers Reinforced . | . . . . Active Scanning Responses . | . . . . Cargo Convoy Interrupts . | . . . . Stealth | -11 -10 -10 -7 --------- Run | Yrd Mat Sub Rec Distress Signals . | . . . . Communications Jammed . | . . . . Distress Signals . | . . . . Times Spotted 55 | . 3 46 6 Peak Tracking Total 6 | . 2 4 6 Tactical Retreats 2 | . . 2 . Traps | -11 -10 -10 -7 ------- Run | Yrd Mat Sub Rec Traps Triggered . | . . . . Indirectly . | . . . . Trap Hack Attempts . | . . . . Triggered . | . . . . Disarmed . | . . . . Reprogrammed . | . . . . Reused . | . . . . Traps Extracted . | . . . . Installed . | . . . . Triggered . | . . . . Machines | -11 -10 -10 -7 ---------- Run | Yrd Mat Sub Rec Machines Disabled 1 | . . 1 . Max in Single Turn 1 | . . 1 . Machines Repaired . | . . . . Machines Dismantled . | . . . . Machines Sabotaged . | . . . . Overloaded Fab Kills . | . . . . Hacking | -11 -10 -10 -7 --------- Run | Yrd Mat Sub Rec Machines Accessed 6 | . . . 6 Terminals 3 | . . . 3 Fabricators . | . . . . Repair Stations . | . . . . Recycling Units 3 | . . . 3 Scanalyzers . | . . . . Garrison Access . | . . . . Total Hacks 11 | . . . 11 Successful 5 | . . . 5 Failed 6 | . . . 6 Catastrophic . | . . . . Database Lockouts . | . . . . Manual . | . . . . Terminals 6 | . . . 6 Fabricators . | . . . . Repair Stations . | . . . . Recycling Units 5 | . . . 5 Scanalyzers . | . . . . Garrison Access . | . . . . Terminal Hacks 2 | . . . 2 Prototype ID Bank 1 | . . . 1 Unreport Threat 1 | . . . 1 Fabricator Hacks . | . . . . Repair Station Hacks . | . . . . Recycling Unit Hacks 3 | . . . 3 Retrieve Components 3 | . . . 3 Scanalyzer . | . . . . Garrison Access Hacks . | . . . . Unauthorized Hacks . | . . . . Terminals . | . . . . Fabricators . | . . . . Repair Stations . | . . . . Recycling Units . | . . . . Scanalyzers . | . . . . Garrison Access . | . . . . Data Cores Recovered . | . . . . Used . | . . . . Hacking Detections 3 | . . . 3 Full Trace Events 1 | . . . 1 Feedback Events . | . . . . Feedback Blocked . | . . . . Robot Schematics Acquired . | . . . . Robots Built . | . . . . Authchips . | . . . . Time . | . . . . Total Robot Build Rating . | . . . . Part Schematics Acquired . | . . . . Parts Built . | . . . . Authchips . | . . . . Time . | . . . . Total Part Build Rating . | . . . . Parts Repaired . | . . . . Time . | . . . . Parts Recycled . | . . . . Recycled Matter . | . . . . Retrieved Matter . | . . . . Retrieved Components 6 | . . . 6 Parts Scanalyzed . | . . . . Part Schematics Acquired . | . . . . Parts Damaged . | . . . . Bothacking | -11 -10 -10 -7 ------------ Run | Yrd Mat Sub Rec Used RIF Installer . | . . . . Robots Hacked . | . . . . Non-combat . | . . . . Combat . | . . . . Robot Hacks Applied . | . . . . Relay Couplers Released . | . . . . Fabnet Peak Effective % . | . . . . Robots Rewired 2 | . . . 2 Allies Hacked . | . . . . Hacks Repelled . | . . . . Allies | -11 -10 -10 -7 -------- Run | Yrd Mat Sub Rec Total Allies 2 | . . . 2 Largest Group 1 | . . . 1 Highest-Rated Group 16 | . . . 16 Highest-Rated Ally 16 | . . . 16 Total Orders . | . . . . Ally Attacks 3 | . . . 3 Total Damage 50 | . . . 50 Kills . | . . . . Allies Corrupted . | . . . . Allies Melted . | . . . . Intel | -11 -10 -10 -7 ------- Run | Yrd Mat Sub Rec Robot Analysis Total . | . . . . Derelict Logs Recovered . | . . . . Drone Launches . | . . . . Drone Recoveries . | . . . . Exploration | -11 -10 -10 -7 ------------- Run | Yrd Mat Sub Rec Turns Passed 1888 | 65 412 874 537 Spaces Moved 831 | 34 125 369 303 Core 57 | 2 . 1 54 Treads 491 | 32 125 334 . Legs 109 | . . 34 75 Wheels 174 | . . . 174 Hover . | . . . . Flight . | . . . . Fastest Speed 50 | 50 160 160 113 Average Speed 171 | 153 160 191 152 Slowest Speed 650 | 160 160 650 250 Overloaded Moves . | . . . . Propulsion Burnouts . | . . . . Robots Hopped . | . . . . Cave-ins Triggered . | . . . . Exploration Rate (%) 22 | 4 20 25 39 Regions Visited 3 Branch Regions 2 Pre-discovered Areas . | . . . . Known Exits Taken . | . . . . Unknown Exits Taken 3 | 1 1 1 . Scrap Searched 4 | . . 4 . Spaces Dug . | . . . . Terrain Destroyed 124 | . . 124 . Melee . | . . . . Projectile 1 | . . 1 . AOE 123 | . . 123 . Terrain Rammed . | . . . . Walls Destroyed . | . . . . Machines Disabled . | . . . . Actions | -11 -10 -10 -7 --------- Run | Yrd Mat Sub Rec Total 1192 | 44 322 463 363 Wait 243 | . 184 38 21 Move 828 | 33 124 368 303 Hop . | . . . . Pick Up 18 | 3 3 6 6 Fast Attach 13 | 7 1 3 2 Attach 3 | . . 3 . Detach 6 | 1 . 2 3 Swap 4 | . 1 1 2 Drop 14 | . 1 2 11 Fire 52 | . 8 40 4 Melee 11 | . . . 11 Ram . | . . . . Kick . | . . . . Crush . | . . . . Escape Stasis . | . . . . Rewire . | . . . . Trap . | . . . . Miscellaneous . | . . . . Route ------- -11/Scrapyard -10/Materials -10/Subcaves -7/Recycling History --------- Turn | Location | Event 10 | -11/Scrapyard | Discovered new exit (range 15) 66 | -11/Scrapyard | Entered Materials 313 | -10/Materials | Build established: Mutant 454 | -10/Materials | Discovered new exit (range 4) 478 | -10/Materials | Entered Subcaves 494 | -10/Subcaves | A swath of the cavern ceiling suddenly collapsed 613 | -10/Subcaves | Shifting Twisted Machinery released Battle Cannon 689 | -10/Subcaves | Shifting Twisted Machinery released Sub. Machine Gun 902 | -10/Subcaves | Disturbed a concealed Subdweller 903 | -10/Subcaves | Disturbed a concealed Subdweller 969 | -10/Subcaves | Lost 3 parts (1n1u1w) 1337 | -10/Subcaves | Discovered new exit (range 8) 1352 | -10/Subcaves | Core integrity fell below 50% 1352 | -10/Subcaves | Entered Recycling 1361 | -7/Recycling | Found Scrap Engine 1820 | -7/Recycling | Build established: Construct 1881 | -7/Recycling | Core integrity fell below 20% 1889 | -7/Recycling | Destroyed by Y-54 Guardian with Gatling Laser Last Messages --------------- Scanner. 01867_ Critical hit (Burn: +37). 01867_ R-06 Scavenger collects Aluminum Leg. 01869_ Ballistic Battle Construct/C destroyed. 01869_ Arm. Scrap Engine damaged due to network destabilization (-8). 01869_ Acquired 49 matter. 01871_ Acquired 30 matter. 01878_ Arm. Scrap Engine consumes Imp. Weapon Shielding. 01882_ G-47 Trooper destroyed. 01883_ Arm. Scrap Engine consumes Aluminum Leg. 01884_ P-60 Hacker Shock Rifle severed. 01885_ System corrupted: Matter fused (-9). 01886_ R-06 Scavenger collects Shock Rifle. 01886_ R-06 Scavenger collects Aluminum Leg. 01887_ Destroyed Remote Datajack. 01887_ P-60 Hacker resets R-06 Scavenger, system corruption cleaned. 01889_ Katana destroyed. Map ----- +----------------------------------------------------+ | ??????????????????????????????? | | ??????????????????????????????? | | ??????????????????????????????? | | ??????????????????????????????? | | ??????????????????????????????? | | ??????????????????????????????? | | ??????????????????????????????? | | ??????? ???????????????????? | | ??????? ??????????????????? | | ?????? #??????????????????? | | ????? #??????????????????? | | ????? #??????????????????? | | ????? #??????????????????? | | ????# ? #??????????????????? | | ????# ? #??????????????????? | | ????# ? #??????????????????? | | ??###+## #??????????????????? | | ??#i # #?????????????????## | | ??# # ###########?###???# | | ??#u %# # ! #?# ???# | | ??#tu% # # #?# ??# | | ??#ri # # /#?# % ?# | | ??#dk r#% # !#?# # | | ??#! rrr " #?# # | | ??#%ipY# # #?#/ =!# | | ??#!ur@# # #?# # | | ??# g # # #?#!! ]+ | | ??#/ r# ###########?# !# | | ??# # #???????????# * # | | ??# t # #???????????# = # | | ??###### #???????????#] # | | ???????# #???????????# ?# | | ???????# #???????????# ]?# | | ???????# #???????????# !??# | | ???????# #???????????# !??# | | ???????# #???????????##+#### | | ???????#&& #???????????# | | ??######! #???????????# | | ??# # #???????????# | | ??# "" # ############### | | ??# "" # | | ### T" # | | #"" "" # | | #"" "" # | | #"T # | | #"" # | | #"" # | | ### # ######## | | ??# + #??????# | | ??# ############??????# | +----------------------------------------------------+ Best States ------------- Heat Dissipation 25 Energy Generation 14 Energy Capacity 188 Matter Stores 300 Matter Capacity 300 Sight Range 16 Robot Scan Range 14 Terrain Scan Density 10 Armor Coverage 100 Evasion (%) 55 Recoil Reduction 2 Item Schematics ----------------- None Robot Schematics ------------------ None Fabricated ------------ Nothing Alien Tech Used ----------------- None Achievements -------------- None Challenges ------------ None Game ------ Seed MiniBattleHammer Manual? 0 Play Time 00:14:13 Cumulative 93.8 hours Start 2024.05.30 @ 18:33:53 End 2024.05.30 @ 18:48:21 Sessions 1 Manual Loads 0 Difficulty Rogue Special Mode None Game No. 157 Rogue 157 Adventurer 0 Explorer 0 Win Type - Total 1 Types 1/0/0/0/0/0/0/0/0 Lore% 41 Gallery% 46 Achievement% 33 Wizard Run 0 Options --------- Layout 1 ASCII 0 Keyboard 1 Movement Numpad Keybinds 0 Fullscreen 1 Font 24/Smallcaps Map View 50x35 Zoom Use 0% Tactical HUD 1 Map Filters NONE Filters NONE Steam 1 RUN: 37658e15-30c9-4aee-bdf7-f662d4ab1c9e